bitfinex/quotes_ETHUSD_20250815
["timestamp","ask_amount","ask_price","bid_price","bid_amount"]
[1755264610150,3.431,4615.2,4613.1,3.95797739]
[1755264610349,3.9054,4615.2,4613.2,0.9363]
[1755264610657,0.4744,4614.8,4612.9,2.16781507]
[1755264610858,3.0,4614.6,4612.2,2.16811956]
[1755264611061,3.0,4614.4,4612.1,1e-08]
[1755264611261,2.16804347,4612.5,4612.1,1e-08]
[1755264611461,2.16792472,4612.8,4612.1,1e-08]
[1755264611713,0.55,4613.9,4612.1,1e-08]
[1755264611714,0.4557,4613.7,4612.1,1e-08]
[1755264611924,3.435,4613.6,4612.2,0.4599]
[1755264612201,2.55849859,4613.5,4612.3,2.16811569]
[1755264612416,5.6597,4614.3,4612.4,0.02168068]
[1755264612417,5.204,4614.3,4612.4,0.02168068]
[1755264612619,8.60225503,4614.2,4612.4,0.9363]
[1755264612917,3.435,4614.2,4612.5,0.9363]
[1755264613073,5.204,4614.3,4612.6,0.9363]
[1755264613373,3.0,4614.0,4612.6,0.9363]
[1755264613569,3.435,4614.4,4612.8,0.55]
[1755264613823,0.04,4614.9,4613.1,0.55]
[1755264613971,0.04,4614.9,4614.2,2.16717704]
[1755264614172,0.04,4614.9,4614.2,0.9363]
[1755264614421,0.04,4614.9,4613.5,0.9363]
[1755264614593,0.04,4614.9,4614.1,2.16723078]
[1755264614778,0.04,4614.9,4613.6,0.14863]
[1755264614976,2.16694114,4614.8,4613.1,2.16770234]
[1755264615218,2.1671119,4614.5,4613.0,0.4599]
[1755264615506,3.436,4614.4,4613.1,3.0]
[1755264615812,3.436,4614.4,4612.8,0.001]
[1755264615969,0.108,4613.7,4613.1,0.108]
[1755264616316,3.544,4613.7,4613.1,0.108]
[1755264616477,2.52190476,4613.6,4613.1,0.108]
[1755264616826,0.3544,4613.6,4612.8,0.001]
[1755264617106,0.108,4612.9,4612.8,0.001]
[1755264618431,0.4744,4614.3,4612.8,0.9373]
[1755264618580,2.16727867,4614.1,4613.0,2.16774481]
[1755264618778,2.16732703,4614.0,4613.0,2.16774481]
[1755264618981,3.0,4614.2,4612.8,0.001]
[1755264619207,2.16731686,4614.0,4612.8,0.001]
[1755264619409,2.16749993,4613.7,4612.8,0.001]
[1755264619608,3.435,4613.6,4612.8,0.001]
[1755264620216,3.88912628,4613.6,4612.8,0.001]
[1755264620526,5.60251,4613.6,4612.8,0.001]
[1755264620814,0.74705942,4613.5,4612.8,0.001]
[1755264621021,0.29293314,4613.5,4612.8,0.001]
[1755264621182,0.45412628,4614.0,4613.0,2.16778668]
[1755264621511,0.45412628,4614.2,4613.5,2.167545]
[1755264621706,0.45412628,4614.1,4613.4,2.16755176]
[1755264621908,0.45412628,4614.5,4613.2,0.4599]
[1755264622126,0.45412628,4614.4,4613.2,0.77031303]
[1755264622320,0.92852628,4614.3,4612.8,0.001]
[1755264622480,2.16750902,4613.6,4612.8,0.001]
[1755264622812,0.5783277,4613.4,4612.8,0.001]
[1755264623014,0.5783277,4613.0,4612.8,0.001]
[1755264623174,10.41283197,4612.9,4612.8,0.001]
[1755264623373,11.72767319,4612.9,4612.8,0.001]
[1755264623613,10.57344952,4612.9,4612.8,0.001]
[1755264623813,8.26834391,4612.9,4612.8,0.001]
[1755264624009,11.71234391,4612.9,4612.8,0.001]
[1755264624378,2.16806868,4612.4,4612.3,0.001]
[1755264624577,6.05758212,4612.4,4612.3,0.001]
[1755264624778,6.98768212,4612.4,4612.3,0.001]
[1755264625396,9.97498212,4612.4,4612.3,0.001]
[1755264625617,5.62397544,4612.4,4612.3,0.001]
[1755264625807,2.62397544,4612.4,4612.3,0.001]
[1755264625977,6.06497544,4612.4,4612.3,0.001]
[1755264626392,6.99507544,4612.4,4612.3,0.001]
[1755264627292,6.06497544,4612.4,4612.3,0.001]
[1755264627506,2.62397544,4612.4,4612.3,0.001]
[1755264627819,6.06597544,4612.4,4612.3,0.001]
[1755264628597,6.06597544,4612.4,4611.4,2.62843544]
[1755264628598,2.16816269,4612.2,4611.2,2.14978808]
[1755264628809,2.62406945,4612.2,4611.2,2.14978808]
[1755264629095,6.55416945,4612.2,4611.2,2.14978808]
[1755264629438,2.16841645,4611.7,4611.2,2.14978808]
[1755264629636,2.16854891,4611.4,4611.2,2.14978808]
[1755264629930,5.16863289,4611.2,4610.1,0.04]
[1755264630130,9.26451335,4611.2,4610.1,0.04]
[1755264630313,11.26684233,4611.2,4610.2,0.001]
[1755264630715,10.19461335,4611.2,4610.2,0.001]
[1755264631049,11.01800873,4611.2,4610.2,0.001]
[1755264631363,15.56800873,4611.2,4611.1,1e-08]
[1755264631850,15.56800873,4611.2,4611.1,0.00080001]
[1755264632006,12.12700873,4611.2,4611.1,0.00080001]
[1755264632213,12.12700873,4611.2,4609.1,0.04]
[1755264632214,2.16905624,4610.3,4609.1,0.04]
[1755264632444,2.16957389,4609.2,4609.1,0.04]
[1755264632642,10.79783295,4609.2,4609.1,0.04]
[1755264632858,0.65488046,4609.2,4609.1,0.04]
[1755264633020,7.79776053,4609.2,4609.1,0.04]
[1755264633214,8.72786053,4609.2,4609.1,0.04]
[1755264633438,5.62818664,4609.2,4609.1,0.04]
[1755264633755,6.27190342,4609.2,4609.1,0.04]
[1755264633927,1.79710536,4609.2,4609.1,0.04]
[1755264634246,6.07648065,4609.2,4609.1,0.04]
[1755264634453,5.24810536,4609.2,4609.1,0.04]
[1755264634658,0.45590676,4609.2,4609.1,0.04]
[1755264634826,1.02701041,4609.2,4609.1,0.04]
[1755264635223,0.45590676,4609.2,4609.1,0.04]
[1755264635623,0.45590676,4609.2,4609.1,3.14592096]
[1755264635824,4.02210365,4610.2,4609.1,1.5078627]
[1755264636061,0.45686812,4610.1,4609.2,0.4711]
[1755264636264,0.45686812,4610.0,4609.9,2.16919832]
[1755264636787,0.45686812,4610.0,4609.9,3.13149832]
[1755264636997,3.45,4610.5,4610.3,2.16905624]
[1755264637146,0.45688382,4610.4,4610.3,2.16905624]
[1755264637353,3.45,4610.5,4610.0,2.16919739]
[1755264637551,0.45685304,4610.4,4609.9,3.13153347]
[1755264637771,0.45685304,4610.3,4610.2,2.1690906]
[1755264637955,0.45685304,4610.3,4610.0,2.16919663]
[1755264638178,0.45685304,4610.2,4609.6,2.16938562]
[1755264638499,3.45,4610.5,4609.9,2.16923199]
[1755264638654,3.90472295,4610.4,4610.0,2.16915512]
[1755264638996,0.45672295,4610.3,4610.2,2.16910329]
[1755264639514,0.5710663,4611.7,4610.3,2.71905624]
[1755264639648,0.4569408,4611.6,4610.7,0.55]
[1755264639855,0.04,4611.9,4611.5,0.1088]
[1755264640091,0.88938158,4611.8,4611.5,0.1088]
[1755264640252,2.2549979,4611.7,4611.5,0.1088]
[1755264640463,1.34348158,4611.6,4611.5,0.1088]
[1755264640790,0.56568158,4611.6,4609.0,2.16962618]
[1755264640993,0.57110732,4610.8,4609.2,2.16957389]
[1755264641193,0.57110732,4610.6,4609.4,2.16947975]
[1755264641494,0.57110732,4610.3,4609.1,0.04]
[1755264641660,0.57110732,4609.6,4609.1,0.04]
[1755264641846,0.76147153,4609.9,4609.1,0.04]
[1755264641847,6.6564225,4609.5,4609.1,0.04]
[1755264642077,0.57110732,4609.3,4609.1,0.04]
[1755264642314,1.0279889,4609.2,4609.1,0.04]
[1755264642479,1.02740288,4609.2,4609.1,0.04]
[1755264642677,4.48540288,4609.2,4609.1,0.04]
[1755264643078,3.91488158,4609.2,4609.1,0.04]
[1755264643589,0.45688158,4609.2,4609.1,0.04]
[1755264643790,4.74883055,4609.2,4609.1,0.04]
[1755264644118,3.48986811,4609.2,4609.1,0.04]
[1755264644289,6.28149555,4609.2,4609.1,0.04]
[1755264644502,7.16809555,4609.2,4609.1,0.04]
[1755264645333,11.86007138,4609.2,4609.1,1e-08]
[1755264645505,0.55,4609.0,4608.1,0.04]
[1755264645712,2.1700447,4608.2,4608.1,0.04]
[1755264645895,7.47480139,4608.2,4608.1,0.04]
[1755264646093,2.71967877,4609.0,4608.1,0.04]
[1755264646094,3.46,4608.3,4608.1,0.04]
[1755264646393,4.03013372,4608.3,4608.1,0.04]
[1755264646997,0.57013372,4608.3,4608.1,0.04]
[1755264647198,3.46,4608.2,4608.1,0.04]
[1755264647953,1.14030811,4609.1,4608.1,0.04]
[1755264647954,0.57013372,4608.9,4608.1,1.0023]
[1755264648093,0.57013372,4609.7,4608.3,2.16999761]
[1755264648300,2.45190618,4610.9,4609.0,2.16964462]
[1755264648301,0.57013372,4610.7,4609.0,2.16964462]
[1755264648604,0.04,4610.9,4609.7,2.16933856]
[1755264648804,0.04,4610.9,4609.6,0.55]
[1755264648805,0.04,4610.9,4609.9,0.55]
[1755264649019,0.04,4610.9,4610.8,2.16882102]
[1755264649233,0.002,4611.3,4611.2,2.71863289]
[1755264649412,0.002,4611.3,4611.2,6.68093289]
[1755264649953,0.002,4611.3,4611.2,6.13093289]
[1755264650170,0.002,4611.3,4611.2,5.16863289]
[1755264650455,0.002,4611.3,4608.3,2.1699913]
[1755264650456,0.002,4611.3,4610.7,5.16886806]
[1755264650627,0.002,4611.3,4611.0,2.16869616]
[1755264650816,0.002,4611.3,4610.8,0.1088]
[1755264651415,0.002,4611.3,4610.8,2.27761763]
[1755264651620,0.4325,4611.2,4608.2,2.48724898]
[1755264651817,0.1088,4610.6,4610.0,0.1088]
[1755264652287,0.1088,4610.6,4610.1,2.16910551]
[1755264652489,0.1088,4610.6,4607.8,2.17018965]
[1755264652670,0.1088,4610.6,4610.0,2.16917891]
[1755264652859,3.466,4610.5,4609.8,0.1088]
[1755264653065,3.466,4610.5,4608.6,0.001]
[1755264653066,0.1088,4609.9,4609.5,2.16942879]
[1755264653264,0.1088,4609.9,4609.3,2.16952639]
[1755264653462,0.1088,4609.9,4609.1,0.1488]
[1755264653463,2.16935993,4609.7,4609.1,0.04]
[1755264653689,0.1088,4609.3,4609.1,0.04]
[1755264654305,0.5413,4609.2,4609.1,0.04]
[1755264654764,3.16497389,4609.2,4609.1,0.04]
[1755264655655,3.96453521,4609.2,4609.1,0.04]
[1755264657181,7.43553521,4609.2,4609.1,0.04]
[1755264657560,3.96453521,4609.2,4609.1,0.04]
[1755264657756,3.16497389,4609.2,4609.1,0.04]
[1755264658090,6.63597389,4609.2,4609.1,0.04]
[1755264658277,7.09261531,4609.2,4609.1,0.04]
[1755264658462,6.63597389,4609.2,4609.1,0.04]
[1755264659392,0.55,4609.1,4608.6,0.001]
[1755264659554,2.16980927,4608.7,4608.6,0.001]
[1755264659756,8.64080927,4608.7,4608.6,0.001]
[1755264660097,4.34355637,4608.7,4608.6,0.001]
[1755264660257,4.3576,4608.7,4608.6,0.001]
[1755264660652,3.9035,4608.7,4608.6,0.001]
[1755264660885,0.8866,4609.3,4608.6,0.001]
[1755264661208,0.8866,4609.3,4608.9,2.16971232]
[1755264661209,3.471,4609.3,4608.9,2.16971232]
[1755264661410,0.4541,4609.9,4609.1,2.16958054]
[1755264661557,3.471,4609.7,4608.6,0.001]
[1755264661753,3.471,4609.7,4608.6,2.17084701]
[1755264661968,0.002,4610.2,4608.6,2.17084124]
[1755264662190,0.002,4610.2,4608.6,0.001]
[1755264662513,3.473,4610.1,4608.6,0.21858607]
[1755264662805,3.473,4610.1,4609.6,2.1693737]
[1755264663092,0.002,4610.2,4609.9,2.16922122]
[1755264663315,0.002,4610.2,4610.1,2.16915034]
[1755264663805,0.002,4610.2,4610.1,2.19084184]
[1755264663960,0.002,4610.2,4610.1,2.25135034]
[1755264664161,0.002,4610.2,4610.1,5.9934075]
[1755264664911,1e-08,4611.3,4610.3,0.55]
[1755264665067,0.002,4612.7,4610.3,0.55]
[1755264665068,0.002,4612.7,4610.5,3.55]
[1755264665273,0.002,4612.7,4612.4,2.16805487]
[1755264665473,0.002,4612.7,4612.6,2.16797467]
[1755264665697,0.04,4613.9,4613.3,2.16763402]
[1755264665896,0.042,4614.9,4614.8,2.16694114]
[1755264666610,0.042,4614.9,4614.8,2.18861055]
[1755264666826,0.042,4614.9,4614.7,3.0]
[1755264666827,0.042,4614.9,4613.8,2.16741081]
[1755264666970,0.042,4614.9,4614.8,2.16694114]
[1755264667615,0.002,4615.4,4614.8,2.16694114]
[1755264667616,1e-08,4615.4,4615.3,2.16670638]
[1755264667841,0.4329,4617.4,4616.8,2.16597179]
[1755264668043,0.484,4617.5,4616.8,26.9971745]
[1755264668346,0.04,4617.9,4616.8,26.9971745]
[1755264668861,0.04,4617.9,4616.3,5.67320179]
[1755264668862,0.04,4617.9,4616.3,25.21014021]
[1755264669155,0.002,4618.2,4617.5,25.21014021]
[1755264669355,0.002,4618.7,4617.5,25.21014021]
[1755264669554,0.108,4617.7,4617.5,27.37577085]
[1755264669708,0.002,4618.7,4617.6,0.02165627]
[1755264669909,0.002,4618.7,4617.5,2.16563723]
[1755264670164,0.4329,4618.6,4617.6,0.51872949]
[1755264670461,0.4329,4618.6,4616.1,0.108]
[1755264670462,0.108,4617.7,4616.1,0.108]
[1755264670606,0.108,4617.2,4616.7,2.16604307]
[1755264670802,0.484,4618.2,4616.8,0.02166002]
[1755264671068,0.484,4618.2,4616.7,3.511]
[1755264671209,0.108,4617.3,4616.7,4.08950658]
[1755264671411,0.4329,4617.2,4616.7,0.57850658]
[1755264671609,0.4329,4617.2,4616.1,3.511]
[1755264671610,0.108,4616.8,4616.1,3.551]
[1755264671926,0.484,4617.9,4616.5,0.108]
[1755264672230,0.55,4617.7,4616.1,0.04]
[1755264672562,0.4329,4617.8,4616.2,0.02166283]
[1755264672759,0.00120001,4619.6,4617.3,2.16572253]
[1755264672760,0.4329,4618.4,4617.3,2.16572253]
[1755264672921,0.4329,4618.4,4616.3,0.4567]
[1755264672922,0.04,4618.9,4617.4,0.0216572]
[1755264673248,0.04,4618.9,4618.6,2.16515827]
[1755264673408,0.04,4618.9,4618.1,3.513]
[1755264673609,0.04,4618.9,4618.2,5.1653458]
[1755264673810,0.00120001,4619.6,4619.5,2.16473644]
[1755264674012,0.00120001,4619.6,4619.5,5.67873644]
[1755264674310,0.00120001,4619.6,4619.5,5.67973644]
[1755264674519,0.002,4620.1,4619.8,2.16459586]
[1755264675062,0.042,4620.9,4620.0,2.16450216]
[1755264675364,0.042,4620.9,4620.5,2.16426793]
[1755264675656,0.042,4620.9,4619.8,2.16455195]
[1755264675841,0.042,4620.9,4619.5,2.73269966]
[1755264675842,0.4349,4620.6,4620.2,3.512]
[1755264676022,0.4349,4620.6,4619.5,0.56797364]
[1755264676224,0.4349,4620.6,4619.6,3.512]
[1755264676535,0.4349,4620.6,4618.7,3.0]
[1755264676536,0.002,4620.6,4620.5,2.16426793]
[1755264677349,0.002,4620.6,4620.5,3.513]
[1755264677551,0.002,4620.6,4619.6,3.0]
[1755264677747,0.002,4620.6,4619.7,0.3]
[1755264677913,0.9169,4620.5,4619.4,2.16474578]
[1755264678113,0.4329,4620.4,4619.2,3.512]
[1755264678314,0.4329,4620.4,4619.4,2.16475497]
[1755264678534,0.4329,4620.4,4619.2,5.67684237]
[1755264678815,0.4329,4620.4,4619.0,2.16495342]
[1755264679055,0.4329,4620.4,4619.3,2.16481658]
[1755264679215,0.4329,4620.4,4619.1,3.72649534]
[1755264679619,0.4329,4620.4,4619.1,0.21649534]
[1755264679820,0.4329,4620.4,4619.2,5.67287552]
[1755264680129,1.034,4620.3,4619.1,3.508]
[1755264680443,0.002,4620.6,4619.1,3.508]
[1755264680444,0.9169,4620.2,4619.1,3.508]
[1755264680777,0.002,4620.6,4618.2,5.203]
[1755264680778,0.002,4620.6,4618.7,0.8925]
[1755264680928,0.002,4620.6,4618.8,3.508]
[1755264680929,0.4329,4620.2,4618.8,3.508]
[1755264681123,0.4329,4620.2,4618.2,3.0]
[1755264681124,2.64850054,4620.1,4618.7,3.508]
[1755264681325,0.4329,4620.0,4618.9,2.16497727]
[1755264681527,0.55,4619.8,4617.2,0.484]
[1755264681789,0.55,4619.8,4618.2,3.51]
[1755264681919,0.55,4619.8,4618.7,2.16510593]
[1755264682134,0.484,4619.9,4619.0,2.16496512]
[1755264682488,0.9829,4619.8,4618.1,0.0408]
[1755264682790,0.108,4618.3,4618.1,0.0408]
[1755264682935,2.27330245,4618.3,4618.1,0.0408]
[1755264683131,2.27330245,4618.3,4617.1,0.04]
[1755264683132,0.9169,4618.2,4617.1,0.04]
[1755264683385,0.55,4618.1,4617.1,0.04]
[1755264683534,0.55,4618.0,4617.1,0.04]
[1755264683737,0.55,4617.9,4617.1,0.04]
[1755264684049,0.9169,4617.9,4617.1,0.04]
[1755264684355,0.4329,4617.8,4617.1,0.04]
[1755264684767,0.55,4618.3,4617.1,0.04]
[1755264684969,0.69669,4618.3,4617.1,0.04]
[1755264685280,0.9169,4618.2,4617.1,0.04]
[1755264685435,0.55,4618.1,4617.1,0.04]
[1755264685636,0.55,4618.1,4616.1,0.04]
[1755264685637,0.55,4617.8,4616.1,0.04]
[1755264685861,0.55,4617.6,4616.1,0.04]
[1755264686082,0.55,4616.5,4616.1,0.04]
[1755264686385,0.55,4617.2,4616.1,0.04]
[1755264686540,0.55,4616.4,4616.1,0.04]
[1755264686879,0.9169,4616.3,4616.1,0.04]
[1755264687089,0.55,4616.7,4616.1,0.04]
[1755264687301,0.2716008,4616.6,4616.1,0.04]
[1755264687595,0.9821,4616.6,4616.1,0.04]
[1755264687796,2.16539269,4618.1,4616.1,0.04]
[1755264687964,0.9169,4617.1,4616.1,0.04]
[1755264688564,0.9169,4617.0,4616.1,0.04]
[1755264688798,2.1660494,4616.7,4616.1,0.04]
[1755264689004,0.9169,4617.0,4616.1,0.04]
[1755264690105,3.0828508,4617.0,4616.1,0.04]
[1755264690415,0.9169,4616.9,4616.1,0.04]
[1755264690566,0.55,4616.5,4616.1,0.04]
[1755264690768,2.71615078,4616.5,4616.1,0.04]
[1755264691091,2.71628395,4616.2,4616.1,0.04]
[1755264691294,4.2131233,4616.2,4616.1,0.04]
[1755264692279,0.55,4616.1,4615.1,0.041]
[1755264692475,2.71722292,4614.2,4614.1,0.04]
[1755264692674,0.55,4614.1,4612.1,0.04]
[1755264692894,2.16759369,4613.5,4612.1,2.20820485]
[1755264693105,0.4329,4613.4,4612.3,2.16811172]
[1755264693281,0.108,4613.2,4612.1,0.04]
[1755264693607,0.108,4613.2,4612.1,2.20820036]
[1755264693792,0.108,4613.2,4612.1,0.04]
[1755264693998,0.5409,4613.2,4612.1,0.04]
[1755264694197,3.64363583,4613.2,4612.1,0.04]
[1755264694511,0.108,4613.2,4612.2,0.9137]
[1755264694714,0.108,4613.2,4612.6,2.16794669]
[1755264694878,0.108,4613.2,4613.1,2.20773969]
[1755264695276,0.45334257,4614.8,4613.2,2.1676927]
[1755264695489,0.108,4613.7,4613.1,0.9537]
[1755264695689,0.108,4613.7,4613.6,2.16750476]
[1755264695890,0.4329,4613.7,4613.1,0.04]
[1755264696489,2.1673222,4614.0,4613.1,0.04]
[1755264696490,2.62066477,4614.0,4613.1,0.04]
[1755264696691,0.45334257,4614.2,4613.1,0.04]
[1755264696891,1.59620716,4615.0,4613.1,0.04]
[1755264696892,1.01902669,4614.9,4613.1,0.04]
[1755264697091,0.14836267,4614.8,4613.2,0.9112]
[1755264697295,0.4646,4615.0,4613.3,3.529]
[1755264697518,0.45334257,4615.5,4613.9,2.16733345]
[1755264697715,0.45334257,4615.5,4614.3,2.16716702]
[1755264698019,0.45334257,4615.5,4613.4,5.16758545]
[1755264698020,0.45334257,4615.8,4614.4,0.02167128]
[1755264698216,0.04,4615.9,4615.2,2.16674513]
[1755264698377,0.04,4615.9,4615.1,2.16675998]
[1755264698582,0.04,4615.9,4614.9,2.16685493]
[1755264698927,0.04,4615.9,4614.5,2.16708202]
[1755264699081,0.04,4615.9,4614.9,2.16689231]
[1755264699282,0.04,4615.9,4614.8,2.1669017]
[1755264699530,0.04,4615.9,4614.8,2.16690883]
[1755264699683,0.30596382,4615.9,4614.5,3.528]
[1755264699881,0.30596382,4615.9,4615.8,2.16647168]
[1755264699882,0.04,4615.9,4615.8,2.16647168]
[1755264700118,0.04,4615.9,4614.9,0.4355]
[1755264700326,0.04,4615.9,4615.0,2.16684723]
[1755264700493,0.04,4615.9,4615.3,2.16667297]
[1755264700815,0.04,4615.9,4614.2,3.525]
[1755264700993,0.04,4615.9,4614.3,3.0]
[1755264701192,0.04,4615.9,4614.1,0.4355]
[1755264701405,1.11568412,4615.7,4613.9,0.73714062]
[1755264701604,1.11568412,4615.2,4613.4,0.001]
[1755264701804,0.56568412,4614.8,4613.4,0.001]
[1755264702006,1.01902669,4615.3,4613.7,2.16741643]
[1755264702185,2.16684524,4615.1,4613.5,0.4355]
[1755264702381,1.00334257,4615.0,4613.4,0.001]
[1755264702723,1.11568412,4614.7,4613.4,0.001]
[1755264702907,0.55,4614.2,4613.4,0.001]
[1755264703105,2.7172697,4614.2,4613.4,0.001]
[1755264703419,0.56568412,4614.4,4613.4,0.001]
[1755264703420,0.45334257,4614.4,4613.4,0.001]
[1755264703626,0.4646,4614.2,4613.4,0.001]
[1755264704121,0.4646,4615.3,4613.4,0.02267598]
[1755264704357,0.4646,4615.3,4613.8,2.16838006]
[1755264704631,0.4646,4615.3,4614.0,2.16730915]
[1755264704848,0.55,4615.2,4613.8,0.001]
[1755264705166,2.16698847,4614.7,4613.8,0.001]
[1755264705449,0.45376362,4614.6,4613.8,0.001]
[1755264706010,0.45376362,4614.7,4613.8,0.001]
[1755264706247,0.45376362,4614.6,4613.9,2.16732339]
[1755264706436,0.4646,4615.1,4614.0,2.16731547]
[1755264706437,0.45376362,4614.9,4614.0,2.16731547]
[1755264706632,0.108,4614.1,4613.8,0.001]
[1755264707025,0.108,4614.1,4613.8,2.16840359]
[1755264707413,0.108,4614.1,4613.8,0.001]
[1755264707719,0.4547923,4614.0,4613.8,0.001]
[1755264707905,0.4547923,4614.0,4613.9,2.16736383]
[1755264708107,0.108,4614.0,4613.9,2.16736383]
[1755264708331,0.108,4614.0,4613.8,0.001]
[1755264708840,0.108,4614.0,4613.9,2.16736383]
[1755264709540,0.56381301,4614.0,4613.8,0.001]
[1755264709714,0.108,4614.0,4613.9,2.16736383]
[1755264710117,0.108,4614.0,4613.9,3.07856383]
[1755264710316,0.45639346,4614.0,4613.9,3.60326526]
[1755264710541,0.108,4614.5,4614.0,2.16731686]
[1755264710741,0.108,4614.5,4614.4,2.16712898]
[1755264710953,0.108,4614.9,4614.8,2.16694114]
[1755264711144,0.56447679,4614.9,4614.4,3.522]
[1755264711348,0.45647679,4614.8,4614.4,3.522]
[1755264711536,0.45647679,4614.7,4614.5,2.16708202]
[1755264711731,0.45647679,4614.6,4614.5,2.16708202]
[1755264712360,0.45647679,4614.6,4614.2,0.108]
[1755264712523,0.45647679,4614.6,4614.1,3.521]
[1755264712524,0.108,4614.3,4614.1,3.521]
[1755264712730,0.108,4613.9,4613.8,2.16838852]
[1755264712967,0.56447679,4613.9,4613.8,2.16838852]
[1755264713571,1.40917679,4613.9,4613.8,0.001]
[1755264713752,2.54078395,4613.9,4613.8,0.001]
[1755264714061,0.45647679,4613.9,4613.8,0.001]
[1755264714225,1.02876087,4613.9,4613.8,0.001]
[1755264714560,0.45647679,4613.9,4613.8,0.001]
[1755264714762,1.53110053,4613.9,4613.8,0.001]
[1755264714961,2.66270769,4613.9,4613.8,0.001]
[1755264715261,1.53110053,4613.9,4613.8,0.001]
[1755264715440,2.67585342,4613.9,4613.8,0.001]
[1755264715849,4.84321725,4613.9,4613.8,0.001]
[1755264716041,2.67585342,4613.9,4613.8,0.001]
[1755264716237,1.53110053,4613.9,4613.8,0.001]
[1755264716763,2.67585342,4613.9,4613.8,0.001]
[1755264716959,1.40917679,4613.9,4613.8,0.001]
[1755264717166,1.60122968,4613.9,4613.8,0.001]
[1755264717372,1.21933747,4613.9,4613.8,0.001]
[1755264717582,0.45647679,4613.9,4613.8,0.001]
[1755264717990,0.92107679,4613.9,4613.8,0.001]
[1755264718285,1.21951033,4613.9,4613.8,0.001]
[1755264719376,0.45647679,4613.9,4613.8,0.001]
[1755264719879,5.01152519,4613.9,4613.8,0.001]
[1755264720088,0.55,4613.4,4613.1,0.04]
[1755264720242,0.55,4613.4,4612.8,0.001]
[1755264720243,2.71783368,4612.9,4612.8,0.001]
[1755264720445,3.17431047,4612.9,4612.8,0.001]
[1755264720671,4.12701047,4612.9,4612.8,0.001]
[1755264721055,0.45647679,4612.9,4612.8,0.001]
[1755264721483,3.57701047,4612.9,4612.8,0.001]
[1755264721642,4.12701047,4612.9,4612.8,0.001]
[1755264721842,1.40917679,4612.9,4612.8,0.001]
[1755264722094,0.92107679,4612.9,4612.8,0.001]
[1755264722246,0.45647679,4612.9,4612.8,0.001]
[1755264722579,0.57841716,4612.9,4612.8,0.001]
[1755264722964,1.15045788,4612.9,4612.8,0.001]
[1755264723163,1.02851751,4612.9,4612.8,0.001]
[1755264723455,0.45647679,4613.2,4612.8,0.001]
[1755264723673,0.45647679,4613.4,4612.8,0.001]
[1755264723855,0.45647679,4613.3,4612.8,0.4365]
[1755264724058,0.45647679,4614.3,4612.9,1.19331872]
[1755264724243,2.16703616,4614.6,4613.0,0.02167786]
[1755264724244,0.45647679,4614.4,4613.0,0.02167786]
[1755264724457,0.45647679,4614.5,4613.2,2.1676927]
[1755264724654,0.04,4614.9,4614.4,2.16712685]
[1755264724850,0.108,4614.8,4614.7,2.1669881]
[1755264725081,0.002,4615.8,4614.8,7.33388228]
[1755264725250,0.002,4615.8,4614.9,0.02166894]
[1755264725445,0.002,4615.8,4615.2,0.108]
[1755264725882,0.108,4615.5,4615.1,3.52]
[1755264726084,0.002,4615.8,4615.7,2.16651862]
[1755264726247,0.002,4615.8,4615.7,2.1881838]
[1755264726450,0.002,4615.8,4615.7,3.23161862]
[1755264726865,0.002,4615.8,4615.7,6.75161862]
[1755264727182,0.002,4615.8,4615.7,10.9434398]
[1755264727387,1e-08,4615.8,4615.7,10.9434398]
[1755264727791,1e-08,4615.8,4615.7,2.27451862]
[1755264727999,1e-08,4615.8,4615.7,2.16651862]
[1755264728587,1e-08,4615.8,4615.7,2.63011862]
[1755264728793,1e-08,4615.8,4615.7,3.23161862]
[1755264729152,1e-08,4615.8,4615.7,3.2532838]
[1755264729385,1e-08,4615.8,4615.7,7.07360641]
[1755264729887,0.03920001,4615.9,4615.8,5.16647168]
[1755264730087,0.03920001,4615.9,4615.8,3.23157168]
[1755264730677,0.03920001,4615.9,4615.8,3.25323639]
[1755264731009,0.04,4616.9,4616.0,0.55]
[1755264731010,1e-08,4616.9,4616.0,0.55]
[1755264731192,0.002,4618.0,4617.4,2.16572096]
[1755264731490,0.002,4618.0,4617.4,5.16572096]
[1755264731809,0.0012,4617.5,4617.4,8.79472096]
[1755264731963,0.0012,4617.5,4617.4,8.79552096]
[1755264732995,0.0012,4617.5,4617.4,9.89165251]
[1755264733491,0.0012,4617.5,4617.4,10.35525251]
[1755264733708,0.0012,4617.5,4617.4,10.84875251]
[1755264733911,1e-08,4617.5,4617.4,11.39875251]
[1755264734578,1e-08,4617.5,4617.4,11.39275251]
[1755264735739,1e-08,4617.5,4617.4,6.37065251]
[1755264736059,1e-08,4617.5,4617.4,5.27452096]
[1755264736185,1e-08,4617.5,4617.4,8.78652096]
[1755264736621,1e-08,4617.5,4617.4,9.74362096]
[1755264736795,1e-08,4617.5,4617.4,10.29362096]
[1755264738197,1e-08,4617.5,4617.4,8.78452096]
[1755264738439,1e-08,4617.5,4617.4,0.1088]
[1755264738618,0.92210001,4617.5,4617.4,0.0008]
[1755264738785,1.03010001,4617.5,4617.4,0.0008]
[1755264739186,0.10800001,4617.5,4617.4,2.16652096]
[1755264739415,0.10800001,4617.5,4617.4,0.0008]
[1755264739629,0.56080001,4617.5,4617.4,0.0008]
[1755264739843,0.10800001,4617.5,4617.4,5.67752096]
[1755264740195,0.10800001,4617.5,4617.4,0.0008]